[Event "World Junior U20 Girls 2018"]
[Site "Gebze"]
[Date "2018.09.11"]
[Round "7"]
[White "Potapova, Margarita"]
[Black "Sieber, Fiona"]
[Result "1-0"]
[ECO "C55"]
[WhiteElo "2277"]
[BlackElo "2277"]
[Annotator "NA"]
[PlyCount "83"]
[EventDate "2018.09.05"]
[EventType "swiss"]
[EventCountry "TUR"]
[SourceTitle "playchess.com"]
[Source "ChessBase"]
[SourceQuality "1"]
[TimeControl "40/5400+30:1800+30"]

1. e4 {[%emt 0:00:30]} e5 {[%emt 0:00:30]} 2. Nf3 {[%emt 0:00:30]} Nc6 {[%emt 0:00:30]} 3. Bc4 {[%emt 0:00:00]} Nf6 {[%emt 0:00:00]} 4. d3 {[%emt 0:00:00]} Be7 {[%emt 0:01:30]} 5. O-O {[%emt 0:00:30]} O-O {[%emt 0:00:00]} 6. Re1 {[%emt 0:00:30]} d6 {[%emt 0:00:00]} 7. a4 {[%emt 0:00:30]} Na5 {[%emt 0:01:30]} 8. Ba2 {[%emt 0:00:00] C55: Two Knights: 4 d3, 4 d4 exd4 5 e5 and Max Lange Attack} c5 {[%emt 0:00:30]} 9. Na3 {[%emt 0:00:30]} Nc6 {[%emt 0:01:00]} 10. c3 {[%emt 0:00:30]} h6 {[%emt 0:00:30]} (10... a6 11. Bd2 Rb8 12. Nc2 Be6 13. Bxe6 fxe6 14. b4 b5 15. Qe2 Qd7 {½-½ (54) Duda,J (2707)-Naiditsch,A (2710) Linares 2017}) 11. h3 {[%emt 0:03:00]} a6 {[%emt 0:04:30]} 12. Nc4 {[%emt 0:02:30]} Be6 {[%emt 0:02:30]} 13. Bd2 {[%emt 0:24:30]} b5 {[%emt 0:11:30]} 14. Ne3 {[%emt 0:00:30]} Rb8 {[%emt 0:04:30]} 15. Qc2 $146 {[%emt 0:05:30]} ({Predecessor:} 15. Nd5 Qd7 {0-1 (34) Swati,G (2257)-Pujari,R (2127) Bhopal 2017}) 15... Qd7 {[%emt 0:06:30]} 16. Kh2 {[%emt 0:07:30]} Rfc8 {[%emt 0:12:30]} 17. axb5 {[%emt 0:10:30]} axb5 {[%emt 0:01:30]} 18. Bxe6 {[%emt 0:00:30]} fxe6 {[%emt 0:01:30]} 19. Ra6 {[%emt 0:05:30]} d5 {[%emt 0:02:30]} 20. Ng4 {[%emt 0:04:30]} Nxg4+ 21. hxg4 d4 22. cxd4 exd4 23. Qb3 {[%emt 1:28:24]} c4 {[%emt 1:05:30]} 24. dxc4 {[%emt 0:00:30]} bxc4 {[%emt 0:00:30]} 25. Qxc4 {[%emt 0:00:30]} Bd6+ {[%emt 0:00:30]} 26. g3 {[%emt 0:00:30]} Nb4 {[%emt 0:00:30]} 27. Rxd6 {[%emt 0:00:30]} Qxd6 {[%emt 0:00:30]} 28. Bxb4 {[%emt 0:00:30]} Qxb4 {[%emt 0:00:30]} 29. Qxe6+ {[%emt 0:00:30]} Kh8 {[%emt 0:00:30]} 30. Kg2 {[%emt 0:07:08]} Rc2 {[%emt 0:02:30]} 31. g5 {[%emt 0:02:56]} Qxb2 {[%emt 0:15:25]} 32. Rf1 {[%emt 0:00:03]} h5 {[%emt 0:05:12]} 33. Ne5 {[%emt 0:01:05]} Qb6 {[%emt 0:02:01]} 34. Nf7+ {[%emt 0:01:12]} Kg8 $18 {[%emt 0:01:24]} 35. Nd6+ {[%emt 0:00:11]} Kh8 {[%emt 0:02:22]} 36. Nf7+ {[%emt 0:00:52]} Kg8 {[%emt 0:00:08]} 37. Nd6+ {[%emt 0:00:13]} Kh8 {[%emt 0:00:03]} 38. g6 {[%emt 0:00:56]} d3 {[%emt 0:02:27]} 39. Nf7+ {[%emt 0:00:57]} Kg8 {[%emt 0:00:03]} 40. Nh6+ {[%emt 0:00:18]} Kh8 {[%emt 0:00:00]} 41. Qg8+ {[%emt 0:01:15]} Rxg8 {[%emt 0:01:25]} 42. Nf7# {[%emt 0:00:00]} 1-0

[Event "World Junior U20 Girls 2018"]
[Site "Gebze"]
[Date "2018.09.11"]
[Round "7"]
[White "Sliwicka, Alicja"]
[Black "Meenal Gupta"]
[Result "1-0"]
[ECO "B98"]
[WhiteElo "2272"]
[BlackElo "1963"]
[Annotator "NA"]
[PlyCount "112"]
[EventDate "2018.09.05"]
[EventType "swiss"]
[EventCountry "TUR"]
[SourceTitle "playchess.com"]
[Source "ChessBase"]
[SourceQuality "1"]
[TimeControl "40/5400+30:1800+30"]

1. e4 {[%emt 0:00:30]} c5 {[%emt 0:00:30]} 2. Nf3 {[%emt 0:00:30]} d6 {[%emt 0:00:30]} 3. d4 {[%emt 0:00:00]} cxd4 {[%emt 0:00:00]} 4. Nxd4 {[%emt 0:00:00]} Nf6 {[%emt 0:00:00]} 5. Nc3 {[%emt 0:00:00]} a6 {[%emt 0:00:30]} 6. Bg5 {[%emt 0:00:00]} e6 {[%emt 0:00:00]} 7. Qd3 {[%emt 0:00:30]} Be7 {[%emt 0:03:00]} 8. O-O-O {[%emt 0:01:00]} Nbd7 {[%emt 0:01:30]} 9. f4 {[%emt 0:00:30]} Qc7 {[%emt 0:12:30]} 10. Be2 {[%emt 0:00:30] LiveBook: 38 Games} b5 {[%emt 0:13:30] B98: Sicilian Najdorf: 6 Bg5 e6 7 f4 Be7, sidelines} 11. Bf3 {[%emt 0:01:30]} Bb7 {[%emt 0:03:30]} (11... b4 12. e5 dxe5 13. Bxa8 exd4 14. Ne2 h6 15. Bh4 O-O 16. Kb1 e5 17. Qf3 exf4 18. Nxf4 {½-½ (40) Harikrishna,P (2726)-Vachier Lagrave,M (2766) Biel 2014 CBM 162 [CB]}) 12. Bxf6 {[%emt 0:00:30]} gxf6 {[%emt 0:07:30]} 13. a3 {[%emt 0:02:30]} O-O-O {[%emt 0:02:30]} 14. Kb1 $146 {[%emt 0:09:30]} ({Predecessor:} 14. Bh5 Rdf8 15. Rhe1 Rhg8 16. g3 Nb6 17. f5 e5 18. Nde2 {½-½ (44) Godoy Bugueno,D (2355)-Valiente,C (2335) Santiago de Chile 1995}) 14... Kb8 {[%emt 0:02:30]} 15. Bh5 {[%emt 0:02:30]} Rhf8 {[%emt 0:10:30]} 16. Qh3 {[%emt 0:14:30]} Rc8 {[%emt 0:01:30]} 17. Rhe1 {[%emt 0:11:30]} Nb6 {[%emt 0:01:30]} 18. Rd3 {[%emt 0:09:30]} d5 {[%emt 0:04:30]} 19. exd5 {[%emt 0:07:30]} Bxd5 {[%emt 0:03:30]} 20. Bf3 {[%emt 0:08:30]} (20. Nxd5 $16 Nxd5 21. Bf3) 20... Rfd8 {[%emt 1:20:18]} 21. Red1 {[%emt 1:17:30]} Bxf3 {[%emt 0:00:30]} 22. Qxf3 {[%emt 0:00:30]} Nd5 {[%emt 0:00:30]} 23. f5 {[%emt 0:00:30]} Qb6 {[%emt 0:01:02]} 24. Nxd5 {[%emt 0:02:30]} Rxd5 {[%emt 0:00:23]} 25. fxe6 {[%emt 0:02:27]} fxe6 {[%emt 0:00:11]} 26. Qe4 {[%emt 0:00:21]} Rc4 {[%emt 0:06:31]} 27. Qxe6 {[%emt 0:02:57]} Qxe6 {[%emt 0:00:30]} 28. Nxe6 {[%emt 0:00:00]} Rxd3 {[%emt 0:00:13]} 29. Rxd3 {[%emt 0:00:03]} Re4 {[%emt 0:00:48]} 30. Nd4 {[%emt 0:00:38]} Re1+ {[%emt 0:01:25]} 31. Ka2 {[%emt 0:00:06]} Bc5 {[%emt 0:02:49]} 32. Nf3 {[%emt 0:05:29]} Re2 {[%emt 0:01:07]} 33. Rd2 {[%emt 0:01:45]} Re6 {[%emt 0:01:03]} 34. Kb3 {[%emt 0:02:18]} Kc7 {[%emt 0:00:10]} 35. c3 {[%emt 0:00:23]} Re4 {[%emt 0:02:36]} 36. Kc2 {[%emt 0:00:22]} Kc6 $18 {[%emt 0:01:39]} 37. Nd4+ {[%emt 0:01:15]} Bxd4 {[%emt 0:00:49]} 38. Rxd4 {[%emt 0:00:37]} Re2+ {[%emt 0:00:19]} 39. Rd2 {[%emt 0:00:00]} Re6 {[%emt 0:00:20]} 40. Rf2 {[%emt 0:00:00]} Kd6 {[%emt 0:00:00]} 41. Kd3 {[%emt 0:02:49]} Kd5 {[%emt 0:04:17]} 42. b3 {[%emt 0:01:30]} Rd6 {[%emt 0:01:30]} 43. Rf4 {[%emt 0:02:30]} Ke5+ {[%emt 0:01:30]} 44. Rd4 {[%emt 0:00:00]} Rc6 {[%emt 0:00:00]} 45. c4 {[%emt 0:02:00]} bxc4+ {[%emt 0:00:00]} 46. Rxc4 {[%emt 0:00:30]} Rd6+ {[%emt 0:00:30]} 47. Ke3 {[%emt 0:00:00]} Rd1 {[%emt 0:00:30]} 48. Ra4 {[%emt 0:01:00]} Re1+ {[%emt 0:01:30]} 49. Kf3 {[%emt 0:00:30]} Rf1+ {[%emt 0:00:30]} 50. Kg3 {[%emt 0:01:30]} Rb1 {[%emt 0:00:30]} 51. b4 {[%emt 0:01:30]} Rb3+ {[%emt 0:00:30]} 52. Kh4 {[%emt 0:01:30]} Rb2 {[%emt 0:00:30]} 53. Kh3 {[%emt 0:00:30]} Rb3+ {[%emt 0:00:30]} 54. g3 {[%emt 0:00:30]} f5 {[%emt 0:00:30]} 55. Kh4 {[%emt 0:00:30]} Rb2 {[%emt 0:00:30]} 56. h3 {[%emt 0:00:30]} Kd5 {[%emt 0:00:30]} 1-0

[Event "World Junior U20 Girls 2018"]
[Site "Gebze"]
[Date "2018.09.11"]
[Round "7"]
[White "Haussernot, Cecile"]
[Black "Zhu, Jiner"]
[Result "0-1"]
[ECO "B52"]
[WhiteElo "2237"]
[BlackElo "2364"]
[Annotator "NA"]
[PlyCount "82"]
[EventDate "2018.09.05"]
[EventType "swiss"]
[EventCountry "TUR"]
[SourceTitle "playchess.com"]
[Source "ChessBase"]
[SourceQuality "1"]
[TimeControl "40/5400+30:1800+30"]

1. e4 {[%emt 0:02:30]} c5 {[%emt 0:00:30]} 2. Nf3 {[%emt 0:00:30]} d6 {[%emt 0:00:00]} 3. Bb5+ {[%emt 0:00:00]} Bd7 {[%emt 0:00:00]} 4. Bxd7+ {[%emt 0:00:00]} Qxd7 {[%emt 0:00:30] LiveBook: 6302 Games} 5. c4 {[%emt 0:00:00]} Nc6 {[%emt 0:00:00]} 6. Nc3 {[%emt 0:00:00]} g6 {[%emt 0:00:30]} 7. d4 {[%emt 0:00:30]} cxd4 {[%emt 0:00:30]} 8. Nxd4 {[%emt 0:00:30]} Bg7 {[%emt 0:00:00]} 9. Be3 {[%emt 0:00:00]} Nf6 {[%emt 0:00:00]} 10. f3 {[%emt 0:00:00]} O-O {[%emt 0:00:30]} 11. O-O {[%emt 0:00:30]} Rfc8 {[%emt 0:00:00]} 12. b3 {[%emt 0:00:30]} Qd8 {[%emt 0:00:30]} 13. Kh1 {[%emt 0:04:30] B52: Sicilian: Moscow Variation with 3...Bd7} (13. Qd2 Nd7 14. Nde2 a6 15. Rac1 Qa5 16. Rfd1 h5 17. Nd5 Qxd2 18. Rxd2 Kf8 19. Nec3 Rab8 20. Na4 b5 21. cxb5 axb5 {½-½ (43) Artemiev,V (2660)-Mamedov,R (2652) Khanty-Mansiysk 2014}) 13... Qa5 {[%emt 0:01:30]} 14. Rc1 {[%emt 0:06:30]} a6 {[%emt 0:01:30] [#]} 15. Qd3 $146 {[%emt 0:06:30]} ({Predecessor:} 15. a4 e6 16. f4 Qh5 17. Nxc6 Rxc6 18. Qxh5 Nxh5 19. g4 Bxc3 20. gxh5 Bg7 21. hxg6 hxg6 22. f5 exf5 23. exf5 Be5 24. Rg1 Kg7 25. Rg2 {½-½ (25) Andreikin,D (2507)-Andriasian,Z (2463) Yerevan 2006}) 15... Rab8 {[%emt 0:02:30]} 16. Bd2 {[%emt 0:08:30]} Nb4 {[%emt 0:12:30]} 17. Qe3 {[%emt 0:05:30]} Qd8 {[%emt 0:08:30]} 18. Nd5 {[%emt 0:05:30]} Nfxd5 {[%emt 0:04:30]} 19. exd5 {[%emt 0:00:30]} Qb6 {[%emt 0:00:30]} ({Avoid the trap} 19... Nxa2 $2 20. Rc2 $18) 20. Bxb4 {[%emt 0:01:30]} Bxd4 {[%emt 0:05:30]} 21. Qe1 {[%emt 0:01:30]} Qd8 {[%emt 0:04:30]} 22. Qe4 {[%emt 0:00:30]} Bf6 {[%emt 0:01:30]} 23. c5 {[%emt 0:06:30]} dxc5 {[%emt 0:04:30]} 24. Bxc5 {[%emt 0:00:30]} Qd7 {[%emt 0:05:30]} 25. Rfe1 {[%emt 0:05:30]} b6 {[%emt 0:01:30]} 26. Bf2 {[%emt 0:01:30]} Qb5 {[%emt 0:03:30]} 27. Rc6 {[%emt 0:05:30]} Rd8 {[%emt 0:04:30]} 28. Bg3 Rb7 29. d6 Rbd7 30. a4 Qxb3 31. Rc7 Rxd6 32. Bxd6 Rxd6 33. Qa8+ Kg7 34. Qxa6 Rd2 {[%emt 1:06:00]} 35. Qc4 {[%emt 1:30:08]} Qe3 {[%emt 0:00:30]} 36. Qc1 {[%emt 0:00:30]} Qf2 {[%emt 0:00:30]} 37. Rg1 {[%emt 0:00:30]} h5 {[%emt 0:00:30]} 38. Qf1 {[%emt 0:00:30]} Qh4 {[%emt 0:02:30]} 39. Qc4 {[%emt 0:03:22]} (39. Qe1 $5 {[%cal Re1d2]} Qf4 40. Rc4 Qxc4 41. Qxd2 $11) 39... Rd4 {[%emt 0:00:30]} 40. Qb5 {[%emt 0:00:00]} Qf4 {[%emt 0:00:00]} 41. Rgc1 $19 {[%emt 0:04:30]} (41. Qc6 $11) 41... Qxc7 {[%emt 0:04:00]} 0-1

[Event "World Junior U20 Girls 2018"]
[Site "Gebze"]
[Date "2018.09.11"]
[Round "7"]
[White "Maltsevskaya, Aleksandra"]
[Black "Paramzina, Anastasya"]
[Result "1-0"]
[ECO "B90"]
[WhiteElo "2234"]
[BlackElo "2222"]
[Annotator "NA"]
[PlyCount "91"]
[EventDate "2018.09.05"]
[EventType "swiss"]
[EventCountry "TUR"]
[SourceTitle "playchess.com"]
[Source "ChessBase"]
[SourceQuality "1"]
[TimeControl "40/5400+30:1800+30"]

1. e4 {[%emt 0:00:30]} c5 {[%emt 0:00:30]} 2. Nf3 {[%emt 0:00:30]} d6 {[%emt 0:00:30]} 3. d4 {[%emt 0:00:30]} cxd4 {[%emt 0:00:30]} 4. Nxd4 {[%emt 0:00:00]} Nf6 {[%emt 0:00:00]} 5. Nc3 {[%emt 0:00:00]} a6 {[%emt 0:00:00]} 6. h3 {[%emt 0:00:00]} e5 {[%emt 0:00:00]} 7. Nde2 {[%emt 0:00:00]} h5 {[%emt 0:00:00] B90: Sicilian Najdorf: Unusual White 6th moves, 6 Be3 Ng4 and 6 Be3 e5} (7... b5 8. Ng3 Qc7 9. Bd3 g6 10. Bg5 Nbd7 11. O-O Bg7 12. a4 bxa4 13. Rxa4 O-O 14. Qd2 Bb7 15. Ra3 Nc5 16. Bxf6 Bxf6 {1-0 (52) Harikrishna,P (2739)-Kokarev,D (2608) Linares 2018}) 8. Bg5 {[%emt 0:00:00]} Be6 {[%emt 0:00:00]} 9. g3 {[%emt 0:01:00]} Be7 {[%emt 0:02:00]} 10. Bg2 {[%emt 0:01:30]} O-O {[%emt 0:02:30]} 11. O-O {[%emt 0:02:30]} Nbd7 {[%emt 0:03:30]} 12. a4 {[%emt 0:00:30]} Rc8 {[%emt 0:01:30]} 13. b3 {[%emt 0:01:30] [#]} Nh7 $146 {[%emt 0:11:30]} ({Predecessor:} 13... Nxe4 14. Bxe7 Nxc3 15. Bxd8 Nxd1 {½-½ (26) Stoyanov,Z (2497)-Casabona,C (2586) ICCF email 2016}) 14. Be3 {[%emt 0:07:30]} Nb8 {[%emt 0:12:30]} 15. Rc1 {[%emt 0:09:30]} h4 {[%emt 0:02:30]} 16. Nd5 {[%emt 0:04:30]} hxg3 {[%emt 0:07:30]} (16... Bxd5 $11 17. Qxd5 Nc6) 17. Nxe7+ {[%emt 0:02:30]} Qxe7 {[%emt 0:00:30]} 18. Nxg3 {[%emt 0:00:30]} b5 {[%emt 0:01:30]} 19. axb5 {[%emt 0:05:00]} axb5 {[%emt 0:00:30]} 20. Kh2 {[%emt 0:05:30]} Rfd8 {[%emt 0:08:00]} 21. Rg1 {[%emt 0:06:30]} Qh4 {[%emt 0:01:30]} 22. Nf5 {[%emt 0:10:30]} Bxf5 {[%emt 0:00:30]} 23. exf5 {[%emt 0:00:30]} Nc6 {[%emt 0:21:30] [#]} 24. Bxc6 $1 {[%emt 1:11:00]} Rxc6 {[%emt 1:25:45]} 25. Rg4 {[%emt 0:00:30]} Qf6 {[%emt 0:00:30]} 26. Qd5 {[%emt 0:00:30]} Rdc8 {[%emt 0:00:30]} 27. Rcg1 {[%emt 0:00:30]} Kf8 {[%emt 0:00:30]} 28. Rxg7 {[%emt 0:03:30]} Qxg7 {[%emt 0:00:30]} 29. Rxg7 {[%emt 0:00:30]} Kxg7 {[%emt 0:00:30]} 30. Qg2+ {[%emt 0:00:00]} Kf8 {[%emt 0:04:16]} 31. Bh6+ {[%emt 0:01:00]} Ke7 {[%emt 0:00:30]} 32. Qg7 {[%emt 0:00:00]} Nf6 {[%emt 0:00:08]} 33. Bg5 {[%emt 0:05:00]} d5 {[%emt 0:00:07]} 34. h4 {[%emt 0:00:00]} d4 {[%emt 0:10:10]} 35. h5 {[%emt 0:04:00]} e4 {[%emt 0:00:46]} 36. h6 {[%emt 0:00:30]} d3 {[%emt 0:00:37]} 37. cxd3 {[%emt 0:00:30]} exd3 {[%emt 0:00:03]} 38. h7 {[%emt 0:00:30]} Rd6 {[%emt 0:00:27]} 39. Bd2 {[%emt 0:01:30]} Nxh7 {[%emt 0:02:53]} 40. Qxh7 {[%emt 0:00:00]} Rd4 {[%emt 0:00:00]} 41. f6+ $18 {[%emt 0:02:00]} Kd6 {[%emt 0:03:18]} 42. Qxf7 {[%emt 0:02:30]} Rh8+ {[%emt 0:00:30]} 43. Kg3 {[%emt 0:00:30]} Rdh4 {[%emt 0:00:30]} 44. Qe7+ {[%emt 0:00:30]} Kd5 {[%emt 0:00:30]} 45. Qd7+ {[%emt 0:00:00]} Kc5 {[%emt 0:01:30]} 46. f7 {[%emt 0:01:00]} 1-0

[Event "World Junior U20 Girls 2018"]
[Site "Gebze"]
[Date "2018.09.11"]
[Round "7"]
[White "Altantuya, Boldbaatar"]
[Black "Alinasab, Mobina"]
[Result "1-0"]
[ECO "E10"]
[WhiteElo "2210"]
[BlackElo "2261"]
[Annotator "ChessBase"]
[PlyCount "101"]
[EventDate "2018.09.05"]
[EventType "swiss"]
[EventCountry "TUR"]
[SourceTitle "playchess.com"]
[Source "ChessBase"]
[SourceQuality "1"]
[TimeControl "40/5400+30:1800+30"]

1. Nf3 {[%emt 0:00:30]} Nf6 {[%emt 0:00:30]} 2. c4 {[%emt 0:00:00]} e6 {[%emt 0:00:00]} 3. d4 {[%emt 0:02:00]} a6 {[%emt 0:00:00]} 4. g3 {[%emt 0:00:30]} b5 {[%emt 0:01:30]} 5. Bg2 {[%emt 0:03:30]} Bb7 {[%emt 0:01:30]} 6. O-O {[%emt 0:03:30]} bxc4 {[%emt 0:03:30]} 7. Qc2 {[%emt 0:02:30]} c5 {[%emt 0:06:30]} 8. dxc5 {[%emt 0:04:30]} Bxc5 {[%emt 0:01:30]} 9. Qxc4 {[%emt 0:00:30]} Be7 {[%emt 0:00:30]} 10. Nc3 {[%emt 0:01:30]} Nc6 {[%emt 0:05:30]} 11. Bf4 {[%emt 0:10:30]} Rc8 {[%emt 0:01:30]} 12. Qa4 {[%emt 0:01:30]} d5 {[%emt 0:02:30]} 13. Ne5 {[%emt 0:07:30]} O-O {[%emt 0:06:30]} 14. Nxc6 {[%emt 0:02:30]} Rxc6 {[%emt 0:00:00]} 15. Rac1 {[%emt 0:02:30]} Qb6 {[%emt 0:01:00]} 16. Be3 {[%emt 0:03:30]} Qc7 {[%emt 0:06:30]} 17. Bf4 {[%emt 0:02:30]} Qb6 {[%emt 0:09:30]} 18. Be3 {[%emt 0:03:30]} Qb4 {[%emt 0:00:30]} 19. Qxb4 {[%emt 0:05:30]} Bxb4 {[%emt 0:00:30]} 20. Bd4 {[%emt 0:00:30]} Rfc8 {[%emt 0:00:30]} 21. a3 {[%emt 0:03:30]} Bd6 {[%emt 0:00:30]} 22. Bxf6 {[%emt 0:00:30]} gxf6 {[%emt 0:03:30]} 23. e4 {[%emt 0:11:30]} d4 {[%emt 0:42:52]} 24. e5 {[%emt 0:02:30]} fxe5 {[%emt 0:00:01]} 25. Bxc6 {[%emt 0:00:00]} Rxc6 {[%emt 0:00:06]} 26. Nb1 {[%emt 0:05:00]} Rb6 {[%emt 0:02:48]} 27. Nd2 {[%emt 0:01:30]} Bd5 {[%emt 0:00:55]} 28. b4 {[%emt 0:00:48]} d3 {[%emt 0:02:19]} 29. Nc4 {[%emt 0:03:38]} Rc6 {[%emt 0:00:06]} 30. Ne3 {[%emt 0:00:59]} Rxc1 {[%emt 0:00:56]} 31. Rxc1 {[%emt 0:00:04]} Bf3 {[%emt 0:00:41]} 32. Kf1 {[%emt 0:05:40]} Kf8 {[%emt 0:00:27]} 33. Ke1 {[%emt 0:00:26]} Bb7 {[%emt 0:00:45]} 34. Nc4 {[%emt 0:00:48]} Ke7 {[%emt 0:00:31]} 35. Nxd6 {[%emt 0:01:42]} Kxd6 {[%emt 0:00:02]} 36. Kd2 {[%emt 0:00:30]} e4 {[%emt 0:00:08]} 37. f3 {[%emt 0:01:27]} exf3 {[%emt 0:01:20]} 38. Kxd3 {[%emt 0:00:28]} e5 {[%emt 0:00:29]} 39. Ke3 {[%emt 0:00:40]} f5 {[%emt 0:00:31]} 40. Rc4 {[%emt 0:00:00]} e4 {[%emt 0:00:00]} 41. Rc5 {[%emt 0:02:50]} Ke6 {[%emt 0:12:06]} 42. Rc7 {[%emt 0:00:30]} Bd5 {[%emt 0:00:16]} 43. Rxh7 {[%emt 0:00:30]} Bc4 {[%emt 0:00:11]} 44. a4 {[%emt 0:01:30]} Kf6 {[%emt 0:01:51]} 45. Rc7 {[%emt 0:00:30]} Bf1 {[%emt 0:01:06]} 46. Rc5 {[%emt 0:00:30]} Kg5 {[%emt 0:01:08]} 47. b5 {[%emt 0:00:30]} axb5 {[%emt 0:00:30]} 48. axb5 {[%emt 0:00:00]} Kg4 {[%emt 0:00:05]} 49. b6 {[%emt 0:01:00]} Ba6 {[%emt 0:00:05]} 50. Ra5 {[%emt 0:00:30]} Bb7 {[%emt 0:00:42]} 51. Ra7 {[%emt 0:00:30]} 1-0

[Event "World Junior U20 Girls 2018"]
[Site "Gebze"]
[Date "2018.09.11"]
[Round "7"]
[White "Ghukasyan, Siranush"]
[Black "Beydullayeva, Govhar"]
[Result "0-1"]
[ECO "B92"]
[WhiteElo "2205"]
[BlackElo "2202"]
[Annotator "ChessBase"]
[PlyCount "76"]
[EventDate "2018.09.05"]
[EventType "swiss"]
[EventCountry "TUR"]
[SourceTitle "playchess.com"]
[Source "ChessBase"]
[SourceQuality "1"]
[TimeControl "40/5400+30:1800+30"]

1. e4 {[%emt 0:03:30]} c5 {[%emt 0:00:30]} 2. Nf3 {[%emt 0:00:00]} d6 {[%emt 0:00:30]} 3. d4 {[%emt 0:00:00]} cxd4 {[%emt 0:00:00]} 4. Nxd4 {[%emt 0:00:00]} Nf6 {[%emt 0:00:00]} 5. Nc3 {[%emt 0:00:00]} a6 {[%emt 0:00:30]} 6. Be3 {[%emt 0:00:00]} e5 {[%emt 0:00:00]} 7. Nf3 {[%emt 0:00:00]} Qc7 {[%emt 0:00:00]} 8. a4 {[%emt 0:00:30]} Be6 {[%emt 0:01:30]} 9. Be2 {[%emt 0:04:30]} Be7 {[%emt 0:00:30]} 10. O-O {[%emt 0:00:00]} O-O {[%emt 0:00:30]} 11. a5 {[%emt 0:01:00]} Nbd7 {[%emt 0:01:30]} 12. Ne1 {[%emt 0:11:30]} Qc6 {[%emt 0:12:30]} 13. Bf3 {[%emt 0:01:30]} b5 {[%emt 0:07:30]} 14. axb6 {[%emt 0:02:30]} Nxb6 {[%emt 0:00:30]} 15. Bxb6 {[%emt 0:00:30]} Qxb6 {[%emt 0:00:00]} 16. Nd3 {[%emt 0:00:30]} Rfc8 {[%emt 0:05:00]} 17. Qd2 {[%emt 0:03:30]} Nd7 {[%emt 0:05:30]} 18. Nd5 {[%emt 0:17:30]} Bxd5 {[%emt 0:00:30]} 19. exd5 {[%emt 0:00:00]} f5 {[%emt 0:06:30]} 20. Nb4 {[%emt 0:02:00]} h6 {[%emt 0:14:30]} 21. Ra2 {[%emt 0:25:30]} Bg5 {[%emt 0:05:30]} 22. Qe1 {[%emt 0:00:00]} e4 {[%emt 0:05:30]} 23. Be2 {[%emt 0:00:00]} Ne5 {[%emt 0:07:30]} 24. Bxa6 {[%emt 0:12:29]} Re8 {[%emt 0:00:30]} 25. Kh1 {[%emt 0:03:36]} f4 {[%emt 0:08:24]} 26. c3 {[%emt 0:05:13]} Ng4 {[%emt 0:05:50]} 27. h3 {[%emt 0:00:40]} Nf6 {[%emt 0:00:40]} 28. Qe2 {[%emt 0:02:39]} e3 {[%emt 0:03:09]} 29. Bb5 {[%emt 0:01:13]} Ne4 {[%emt 0:04:26]} 30. Bxe8 {[%emt 0:01:02]} Rxe8 {[%emt 0:00:06]} 31. Kh2 {[%emt 0:00:50]} exf2 {[%emt 0:02:25]} 32. Nc2 {[%emt 0:01:49]} Qd8 {[%emt 0:02:06]} 33. Ra7 {[%emt 0:01:49]} Bh4 {[%emt 0:01:31]} 34. Qg4 {[%emt 0:00:35]} Qg5 {[%emt 0:00:36]} 35. Nd4 {[%emt 0:00:34]} Bg3+ {[%emt 0:00:44]} 36. Kh1 {[%emt 0:00:30]} Qxg4 {[%emt 0:00:30]} 37. hxg4 {[%emt 0:00:00]} Nd2 {[%emt 0:00:00]} 38. Ne6 {[%emt 0:01:16]} Nxf1 {[%emt 0:00:00]} 0-1

[Event "World Junior U20 Girls 2018"]
[Site "Gebze"]
[Date "2018.09.11"]
[Round "7"]
[White "Hilario, Aleyla"]
[Black "Diakonova, Ekaterina"]
[Result "0-1"]
[ECO "E62"]
[WhiteElo "2203"]
[BlackElo "2243"]
[Annotator "ChessBase"]
[PlyCount "80"]
[EventDate "2018.09.05"]
[EventType "swiss"]
[EventCountry "TUR"]
[SourceTitle "playchess.com"]
[Source "ChessBase"]
[SourceQuality "1"]
[TimeControl "40/5400+30:1800+30"]

1. d4 {[%emt 0:00:30]} Nf6 {[%emt 0:00:30]} 2. Nf3 {[%emt 0:00:30]} g6 {[%emt 0:00:30]} 3. g3 {[%emt 0:00:30]} Bg7 {[%emt 0:00:30]} 4. Bg2 {[%emt 0:00:00]} O-O {[%emt 0:00:00]} 5. c4 {[%emt 0:00:00]} d6 {[%emt 0:00:00]} 6. O-O {[%emt 0:00:00]} c6 {[%emt 0:00:00]} 7. Nc3 {[%emt 0:00:00]} Bf5 {[%emt 0:00:00]} 8. Nh4 {[%emt 0:15:30]} Be6 {[%emt 0:00:00]} 9. Qd3 {[%emt 0:01:30]} Na6 {[%emt 0:07:00]} 10. a3 {[%emt 0:01:30]} d5 {[%emt 0:04:30]} 11. c5 {[%emt 0:00:30]} Ne4 {[%emt 0:02:30]} 12. b4 {[%emt 0:03:30]} Nc7 {[%emt 0:03:30]} 13. Rd1 {[%emt 0:03:30]} Nxc3 {[%emt 0:01:30]} 14. Qxc3 {[%emt 0:00:30]} f6 {[%emt 0:02:30]} 15. Nf3 {[%emt 0:08:30]} Bg4 {[%emt 0:03:30]} 16. Bf4 {[%emt 0:01:30]} Nb5 {[%emt 0:08:30]} 17. Qb3 {[%emt 0:32:30]} Bxf3 {[%emt 0:02:30]} 18. Bxf3 {[%emt 0:00:30]} e5 {[%emt 0:02:30]} 19. Be3 {[%emt 0:00:00]} exd4 {[%emt 0:01:30]} 20. Bc1 {[%emt 0:00:00]} a5 {[%emt 0:00:30]} 21. a4 {[%emt 0:04:30]} Nc7 {[%emt 0:13:30]} 22. b5 {[%emt 0:00:30]} Ne6 {[%emt 0:03:30]} 23. Ba3 {[%emt 0:00:30]} Rb8 {[%emt 0:01:30]} 24. Rac1 {[%emt 0:00:30]} f5 {[%emt 0:02:30]} 25. Qd3 {[%emt 0:01:30]} Qc7 {[%emt 0:08:30]} 26. Bg2 {[%emt 0:00:30]} g5 {[%emt 0:01:30]} 27. Bb2 {[%emt 0:00:30]} g4 {[%emt 0:01:30]} 28. Rc2 {[%emt 0:06:24]} f4 {[%emt 0:04:30]} 29. e4 {[%emt 0:02:58]} dxe3 {[%emt 0:02:30]} 30. b6 {[%emt 0:01:44]} Qe7 {[%emt 0:04:11]} 31. Bxg7 {[%emt 0:01:10]} Qxg7 {[%emt 0:00:48]} 32. fxe3 {[%emt 0:00:49]} f3 {[%emt 0:00:38]} 33. Bf1 {[%emt 0:00:12]} Qe5 {[%emt 0:02:30]} 34. Rdc1 {[%emt 0:03:57]} Ng5 {[%emt 0:01:25]} 35. Qd4 {[%emt 0:00:26]} Qxd4 {[%emt 0:02:02]} 36. exd4 {[%emt 0:00:30]} Rbe8 {[%emt 0:00:00]} 37. Rd1 {[%emt 0:00:31]} Re3 {[%emt 0:00:40]} 38. Rd3 {[%emt 0:03:22]} Re1 {[%emt 0:03:21]} 39. Kf2 {[%emt 0:00:22]} Rfe8 {[%emt 0:00:00]} 40. Ra2 {[%emt 0:00:00]} Rb1 {[%emt 0:00:00]} 0-1